fUST/lending_fUST_20250718
["ID","MTS","AMOUNT","RATE_DAILY","PERIOD"]
[372877215,1752789053291,-460.0,0.00017883,2]
[372877216,1752789053300,-716.23,0.00017883,2]
[372877217,1752789053310,-779.4,0.00017883,2]
[372877218,1752789053319,-460.0,0.00017883,2]
[372877219,1752789053329,-460.0,0.00017883,2]
[372877220,1752789053339,-460.0,0.00017883,2]
[372877221,1752789053348,-460.0,0.00017884,2]
[372877222,1752789053358,-460.0,0.00017884,2]
[372877223,1752789053367,-460.0,0.00017884,2]
[372877224,1752789053377,-460.0,0.00017884,2]
[372877225,1752789053386,-460.0,0.00017884,2]
[372877226,1752789053395,-460.0,0.00017884,2]
[372877227,1752789053405,-460.0,0.00017884,2]
[372877228,1752789053415,-460.0,0.00017884,2]
[372877229,1752789053426,-460.0,0.00017884,2]
[372877230,1752789053438,-460.0,0.00017884,2]
[372877231,1752789053450,-460.0,0.00017884,2]
[372877232,1752789053459,-460.0,0.00017884,2]
[372877233,1752789053470,-460.0,0.00017884,2]
[372877234,1752789053481,-460.0,0.00017884,2]
[372877235,1752789053490,-460.0,0.00017884,2]
[372877236,1752789053502,-460.0,0.00017884,2]
[372877237,1752789053513,-478.11,0.00017884,2]
[372877238,1752789053522,-667.28,0.00017884,2]
[372877239,1752789053531,-460.0,0.00017884,2]
[372877240,1752789053541,-460.0,0.00017884,2]
[372877241,1752789053550,-460.0,0.00017884,2]
[372877242,1752789053560,-368.35997114,0.00017884,2]
[372877243,1752789053570,-460.0,0.00017884,2]
[372877244,1752789053579,-460.0,0.00017884,2]
[372877245,1752789053589,-460.0,0.00017884,2]
[372877246,1752789053599,-815.05,0.00017884,2]
[372877247,1752789053609,-1653.1,0.00017884,2]
[372877248,1752789053620,-460.0,0.00017884,2]
[372877249,1752789053630,-460.0,0.00017884,2]
[372877250,1752789053639,-460.0,0.00017884,2]
[372877251,1752789053648,-462.97,0.00017884,2]
[372877252,1752789053659,-492.36,0.00017884,2]
[372877253,1752789053668,-460.0,0.00017884,2]
[372877254,1752789053678,-460.0,0.00017884,2]
[372877255,1752789053688,-460.0,0.00017884,2]
[372877256,1752789053698,-565.51,0.00017884,2]
[372877257,1752789053708,-1792.91,0.00017885,2]
[372877258,1752789053717,-460.0,0.00017885,2]
[372877259,1752789053726,-476.22,0.00017885,2]
[372877260,1752789053736,-460.0,0.00017885,2]
[372877261,1752789053746,-554.7,0.00017885,2]
[372877262,1752789053756,-2238.22,0.00017885,2]
[372877263,1752789053769,-1267.48,0.00017885,2]
[372877264,1752789053784,-151.0,0.00017886,2]
[372877265,1752789053793,-460.0,0.00017886,2]
[372877266,1752789053802,-428.51895986,0.00017886,2]
[372877267,1752789053812,-573.8,0.00017886,2]
[372877268,1752789053822,-460.0,0.00017886,2]
[372877269,1752789053831,-460.0,0.00017886,2]
[372877270,1752789053840,-460.0,0.00017886,2]
[372877271,1752789053850,-460.0,0.00017886,2]
[372877272,1752789053859,-460.0,0.00017886,2]
[372877273,1752789053869,-460.0,0.00017886,2]
[372877274,1752789053878,-460.0,0.00017886,2]
[372877275,1752789053888,-460.0,0.00017886,2]
[372877276,1752789053897,-460.0,0.00017886,2]
[372877277,1752789053907,-460.0,0.00017886,2]
[372877278,1752789053916,-460.0,0.00017886,2]
[372877279,1752789053926,-460.0,0.00017886,2]
[372877280,1752789053935,-460.0,0.00017886,2]
[372877281,1752789053946,-151.0,0.00017889,2]
[372877282,1752789053956,-151.0,0.00018,2]
[372877283,1752789053965,-480.0,0.00018044,2]
[372877284,1752789053974,-160.0,0.00018078,2]
[372877285,1752789053984,-480.0,0.00018133,2]
[372877286,1752789053993,-500.0,0.0001815,2]
[372877287,1752789054002,-500.0,0.00018154,2]
[372877288,1752789054012,-500.0,0.00018154,2]
[372877289,1752789054022,-500.0,0.00018154,2]
[372877290,1752789054031,-170.81692496,0.00018154,2]
[372877291,1752789054041,-460.0,0.00018156,2]
[372877292,1752789054050,-460.0,0.00018156,2]
[372877293,1752789054059,-460.0,0.00018156,2]
[372877294,1752789054072,-460.0,0.00018156,2]
[372877295,1752789054083,-460.0,0.00018156,2]
[372877296,1752789054092,-460.0,0.00018156,2]
[372877297,1752789054102,-3212.54,0.00018156,2]
[372877298,1752789054111,-1115.15,0.00018156,2]
[372877299,1752789054121,-460.0,0.00018157,2]
[372877300,1752789054131,-966.93,0.00018157,2]
[372877301,1752789054140,-1595.08,0.00018157,2]
[372877302,1752789054150,-460.0,0.00018157,2]
[372877303,1752789054159,-460.0,0.00018157,2]
[372877304,1752789054169,-1001.3,0.00018157,2]
[372877305,1752789054180,-460.0,0.00018157,2]
[372877306,1752789054189,-460.0,0.00018157,2]
[372877307,1752789054199,-460.0,0.00018157,2]
[372877308,1752789054210,-460.0,0.00018157,2]
[372877309,1752789054220,-716.23,0.00018157,2]
[372877310,1752789054230,-779.4,0.00018157,2]
[372877311,1752789054240,-460.0,0.00018157,2]
[372877312,1752789054249,-460.0,0.00018157,2]
[372877313,1752789054259,-460.0,0.00018157,2]
[372877314,1752789054268,-460.0,0.00018158,2]
[372877315,1752789054278,-460.0,0.00018158,2]
[372877316,1752789054287,-460.0,0.00018158,2]
[372877317,1752789054297,-460.0,0.00018158,2]
[372877318,1752789054306,-460.0,0.00018158,2]
[372877319,1752789054316,-221.74639928,0.00018158,2]
[372877320,1752789054325,-290.14090412,0.00018158,2]
[372877321,1752789054335,-460.0,0.00018158,2]
[372877322,1752789054344,-460.0,0.00018158,2]
[372877323,1752789054353,-566.84792562,0.00018158,2]
[372877324,1752789054363,-460.0,0.00018158,2]
[372877325,1752789054373,-460.0,0.00018158,2]
[372877326,1752789054382,-460.0,0.00018158,2]
[372877327,1752789054392,-460.0,0.00018158,2]
[372877328,1752789054401,-460.0,0.00018158,2]
[372877329,1752789054411,-478.11,0.00018158,2]
[372877330,1752789054420,-667.28,0.00018158,2]
[372877331,1752789054432,-460.0,0.00018158,2]
[372877332,1752789054443,-460.0,0.00018158,2]
[372877333,1752789054454,-460.0,0.00018158,2]
[372877334,1752789054463,-460.0,0.00018158,2]
[372877335,1752789054473,-460.0,0.00018158,2]
[372877336,1752789054485,-460.0,0.00018158,2]
[372877337,1752789054495,-815.05,0.00018158,2]
[372877338,1752789054505,-1653.1,0.00018158,2]
[372877339,1752789054517,-460.0,0.00018158,2]
[372877340,1752789054530,-554.69100916,0.00018158,2]
[372877341,1752789054540,-460.0,0.00018158,2]
[372877342,1752789054549,-462.97,0.00018158,2]
[372877343,1752789054559,-492.36,0.00018158,2]
[372877344,1752789054569,-460.0,0.00018158,2]
[372877345,1752789054579,-460.0,0.00018158,2]
[372877346,1752789054589,-460.0,0.00018158,2]
[372877347,1752789054598,-565.51,0.00018158,2]
[372877348,1752789054608,-1792.91,0.00018159,2]
[372877349,1752789054618,-460.0,0.00018159,2]
[372877350,1752789054628,-476.22,0.00018159,2]
[372877351,1752789054638,-460.0,0.00018159,2]
[372877352,1752789054647,-554.7,0.00018159,2]
[372877353,1752789054656,-2238.22,0.00018159,2]
[372877354,1752789054666,-1267.48,0.00018159,2]
[372877355,1752789054676,-460.0,0.0001816,2]
[372877356,1752789054686,-573.8,0.0001816,2]
[372877357,1752789054696,-460.0,0.0001816,2]
[372877358,1752789054706,-460.0,0.0001816,2]
[372877359,1752789054716,-460.0,0.0001816,2]
[372877360,1752789054726,-460.0,0.0001816,2]
[372877361,1752789054735,-460.0,0.0001816,2]
[372877362,1752789054745,-359.72,0.0001816,2]
[372877363,1752789054755,-460.0,0.0001816,2]
[372877364,1752789054764,-460.0,0.0001816,2]
[372877365,1752789054775,-460.0,0.0001816,2]
[372877366,1752789054784,-460.0,0.0001816,2]
[372877367,1752789054794,-460.0,0.0001816,2]
[372877368,1752789054803,-460.0,0.0001816,2]
[372877369,1752789054814,-460.0,0.0001816,2]
[372877370,1752789054823,-151.0,0.00018163,2]
[372877371,1752789054833,-1500.0,0.00018168,2]
[372877372,1752789054842,-1500.0,0.00018168,2]
[372877373,1752789054852,-160.0,0.00018204,2]
[372877374,1752789054862,-160.0,0.00018204,2]
[372877375,1752789054872,-12607.95677342,0.00018204,2]
[372877376,1752789054882,-160.0,0.00018204,2]
[372877377,1752789054891,-839.15451687,0.00018204,2]
[372877378,1752789054901,-214.44804168,0.00018204,2]
[372877379,1752789054910,-215.59244943,0.00018204,2]
[372877380,1752789054919,-230.85589339,0.00018204,2]
[372877381,1752789054929,-525.67742785,0.00018204,2]
[372877382,1752789054939,-160.0,0.00018204,2]
[372877383,1752789054948,-160.0,0.00018204,2]
[372877384,1752789054958,-160.0,0.00018204,2]
[372877385,1752789054968,-476.16111942,0.00018204,2]
[372877386,1752789054977,-160.0,0.00018204,2]
[372877387,1752789054987,-160.0,0.00018213,2]
[372877388,1752789054996,-150.0,0.00018236,2]
[372877389,1752789055006,-460.0,0.0001843,2]
[372877390,1752789055016,-460.0,0.0001843,2]
[372877391,1752789055025,-460.0,0.0001843,2]
[372877392,1752789055035,-460.0,0.0001843,2]
[372877393,1752789055045,-460.0,0.0001843,2]
[372877394,1752789055054,-460.0,0.0001843,2]
[372877395,1752789055064,-3212.54,0.0001843,2]
[372877396,1752789055073,-1115.15,0.0001843,2]
[372877397,1752789055083,-460.0,0.00018431,2]
[372877398,1752789055092,-966.93,0.00018431,2]
[372877399,1752789055102,-1595.08,0.00018431,2]
[372877400,1752789055203,-460.0,0.00018431,2]
[372877401,1752789055213,-460.0,0.00018431,2]
[372877402,1752789055223,-1001.3,0.00018431,2]
[372877403,1752789055233,-583.78461303,0.00018431,2]
[372877404,1752789055243,-460.0,0.00018431,2]
[372877405,1752789055253,-460.0,0.00018431,2]
[372877406,1752789055262,-460.0,0.00018431,2]
[372877407,1752789055272,-716.23,0.00018431,2]
[372877408,1752789055282,-779.4,0.00018431,2]
[372877409,1752789055291,-460.0,0.00018431,2]
[372877410,1752789055301,-460.0,0.00018431,2]
[372877411,1752789055310,-460.0,0.00018431,2]
[372877412,1752789055320,-460.0,0.00018432,2]
[372877413,1752789055330,-460.0,0.00018432,2]
[372877414,1752789055340,-460.0,0.00018432,2]
[372877415,1752789055350,-460.0,0.00018432,2]
[372877416,1752789055359,-460.0,0.00018432,2]
[372877417,1752789055369,-460.0,0.00018432,2]
[372877418,1752789055379,-460.0,0.00018432,2]
[372877419,1752789055388,-460.0,0.00018432,2]
[372877420,1752789055398,-460.0,0.00018432,2]
[372877421,1752789055419,-460.0,0.00018432,2]
[372877422,1752789055430,-460.0,0.00018432,2]
[372877423,1752789055443,-478.11,0.00018432,2]
[372877424,1752789055455,-667.28,0.00018432,2]
[372877425,1752789055465,-460.0,0.00018432,2]
[372877426,1752789055477,-460.0,0.00018432,2]
[372877427,1752789055487,-460.0,0.00018432,2]
[372877428,1752789055497,-460.0,0.00018432,2]
[372877429,1752789055508,-460.0,0.00018432,2]
[372877430,1752789055519,-815.05,0.00018432,2]
[372877431,1752789055530,-1653.1,0.00018432,2]
[372877432,1752789055539,-460.0,0.00018432,2]
[372877433,1752789055550,-460.0,0.00018432,2]
[372877434,1752789055561,-462.97,0.00018432,2]
[372877435,1752789055571,-492.36,0.00018432,2]
[372877436,1752789055581,-371.66,0.00018432,2]
[372877437,1752789055591,-460.0,0.00018432,2]
[372877438,1752789055602,-460.0,0.00018432,2]
[372877439,1752789055612,-565.51,0.00018432,2]
[372877440,1752789055622,-1792.91,0.00018433,2]
[372877441,1752789055632,-460.0,0.00018433,2]
[372877442,1752789055642,-476.22,0.00018433,2]
[372877443,1752789055652,-460.0,0.00018433,2]
[372877444,1752789055662,-554.7,0.00018433,2]
[372877445,1752789055672,-2238.22,0.00018433,2]
[372877446,1752789055683,-1267.48,0.00018433,2]
[372877447,1752789055693,-151.0,0.00018434,2]
[372877448,1752789055704,-460.0,0.00018434,2]
[372877449,1752789055714,-573.8,0.00018434,2]
[372877450,1752789055724,-460.0,0.00018434,2]
[372877451,1752789055734,-460.0,0.00018434,2]
[372877452,1752789055744,-460.0,0.00018434,2]
[372877453,1752789055754,-460.0,0.00018434,2]
[372877454,1752789055764,-460.0,0.00018434,2]
[372877455,1752789055774,-460.0,0.00018434,2]
[372877456,1752789055784,-460.0,0.00018434,2]
[372877457,1752789055798,-460.0,0.00018434,2]
[372877458,1752789055808,-460.0,0.00018434,2]
[372877459,1752789055818,-460.0,0.00018434,2]
[372877460,1752789055828,-557.85221893,0.00018434,2]
[372877461,1752789055838,-151.0,0.00018434,2]
[372877462,1752789055848,-460.0,0.00018434,2]
[372877463,1752789055858,-832.44717428,0.0001853,2]
[372877464,1752789055868,-260.0,0.00018626,2]
[372877465,1752789055878,-1000.0,0.00018698,2]
[372877466,1752789055888,-500.0,0.00018702,2]
[372877467,1752789055897,-1000.0,0.00018702,2]
[372877468,1752789055907,-460.0,0.00018704,2]
[372877469,1752789055918,-460.0,0.00018704,2]
[372877470,1752789055927,-460.0,0.00018704,2]
[372877471,1752789055937,-460.0,0.00018704,2]
[372877472,1752789055947,-460.0,0.00018704,2]
[372877473,1752789055957,-460.0,0.00018704,2]
[372877474,1752789055967,-3212.54,0.00018704,2]
[372877475,1752789055977,-1115.15,0.00018704,2]
[372877476,1752789055986,-472.84,0.00018705,2]
[372877477,1752789055996,-966.93,0.00018705,2]
[372877478,1752789056010,-1595.08,0.00018705,2]
[372877479,1752789056027,-460.0,0.00018705,2]
[372877480,1752789056037,-460.0,0.00018705,2]
[372877481,1752789056047,-915.287653,0.00018705,2]
[372877482,1752789056057,-915.287653,0.00018705,2]
[372877483,1752789056066,-1001.3,0.00018705,2]
[372877484,1752789056076,-460.0,0.00018705,2]
[372877485,1752789056086,-348.35026998,0.00018705,2]
[372877486,1752789056096,-460.0,0.00018705,2]
[372877487,1752789056105,-716.23,0.00018705,2]
[372877488,1752789056115,-779.4,0.00018705,2]
[372877489,1752789056125,-460.0,0.00018705,2]
[372877490,1752789056135,-460.0,0.00018705,2]
[372877491,1752789056145,-460.0,0.00018705,2]
[372877492,1752789056155,-460.0,0.00018706,2]
[372877493,1752789056166,-460.0,0.00018706,2]
[372877494,1752789056176,-460.0,0.00018706,2]
[372877495,1752789056186,-460.0,0.00018706,2]
[372877496,1752789056197,-151.0,0.00018706,2]
[372877497,1752789056207,-460.0,0.00018706,2]
[372877498,1752789056218,-460.0,0.00018706,2]
[372877499,1752789056228,-460.0,0.00018706,2]
[372877500,1752789056238,-460.0,0.00018706,2]
[372877501,1752789056249,-460.0,0.00018706,2]
[372877502,1752789056259,-568.33,0.00018706,2]
[372877503,1752789056269,-460.0,0.00018706,2]
[372877504,1752789056279,-478.11,0.00018706,2]
[372877505,1752789056290,-667.28,0.00018706,2]
[372877506,1752789056299,-460.0,0.00018706,2]
[372877507,1752789056310,-460.0,0.00018706,2]
[372877508,1752789056319,-460.0,0.00018706,2]
[372877509,1752789056329,-460.0,0.00018706,2]
[372877510,1752789056339,-460.0,0.00018706,2]
[372877511,1752789056349,-815.05,0.00018706,2]
[372877512,1752789056359,-1653.1,0.00018706,2]
[372877513,1752789056368,-460.0,0.00018706,2]
[372877514,1752789056378,-460.0,0.00018706,2]
[372877515,1752789056388,-462.97,0.00018706,2]
[372877516,1752789056398,-492.36,0.00018706,2]
[372877517,1752789056408,-460.0,0.00018706,2]
[372877518,1752789056418,-460.0,0.00018706,2]
[372877519,1752789056431,-565.51,0.00018706,2]
[372877520,1752789056441,-151.0,0.00018707,2]
[372877521,1752789056451,-151.0,0.00018707,2]
[372877522,1752789056460,-1792.91,0.00018707,2]
[372877523,1752789056471,-501.65821625,0.00018707,2]
[372877524,1752789056480,-476.22,0.00018707,2]
[372877525,1752789056494,-460.0,0.00018707,2]
[372877526,1752789056504,-554.7,0.00018707,2]
[372877527,1752789056515,-2238.22,0.00018707,2]
[372877528,1752789056526,-1267.48,0.00018707,2]
[372877529,1752789056536,-513.33,0.00018708,2]
[372877530,1752789056546,-573.8,0.00018708,2]
[372877531,1752789056556,-460.0,0.00018708,2]
[372877532,1752789056566,-460.0,0.00018708,2]
[372877533,1752789056576,-460.0,0.00018708,2]
[372877534,1752789056586,-460.0,0.00018708,2]
[372877535,1752789056595,-460.0,0.00018708,2]
[372877536,1752789056606,-460.0,0.00018708,2]
[372877537,1752789056616,-460.0,0.00018708,2]
[372877538,1752789056626,-460.0,0.00018708,2]
[372877539,1752789056636,-460.0,0.00018708,2]
[372877540,1752789056646,-460.0,0.00018708,2]
[372877541,1752789056656,-460.0,0.00018708,2]
[372877542,1752789056669,-151.0,0.00018711,2]
[372877543,1752789056679,-500.0,0.00018716,2]
[372877544,1752789056689,-2000.0,0.00018716,2]
[372877545,1752789056699,-150.0,0.000189,2]
[372877546,1752789056708,-156.89960544,0.00018978,2]
[372877547,1752789056718,-460.0,0.00018978,2]
[372877548,1752789056728,-460.0,0.00018978,2]
[372877549,1752789056737,-460.0,0.00018978,2]
[372877550,1752789056747,-460.0,0.00018978,2]
[372877551,1752789056757,-271.50452628,0.00018978,2]
[372877552,1752789056767,-3212.54,0.00018978,2]
[372877553,1752789056776,-1115.15,0.00018978,2]
[372877554,1752789056786,-966.93,0.00018979,2]
[372877555,1752789056796,-1595.08,0.00018979,2]
[372877556,1752789056805,-460.0,0.00018979,2]
[372877557,1752789056815,-460.0,0.00018979,2]
[372877558,1752789056824,-1001.3,0.00018979,2]
[372877559,1752789056834,-460.0,0.00018979,2]
[372877560,1752789056843,-460.0,0.00018979,2]
[372877561,1752789056853,-716.23,0.00018979,2]
[372877562,1752789056864,-779.4,0.00018979,2]
[372877563,1752789056874,-460.0,0.00018979,2]
[372877564,1752789056883,-460.0,0.00018979,2]
[372877565,1752789056893,-460.0,0.00018979,2]
[372877566,1752789056903,-460.0,0.0001898,2]
[372877567,1752789056912,-279.98990516,0.0001898,2]
[372877568,1752789056922,-435.24,0.0001898,2]
[372877569,1752789056932,-155.619097,0.0001898,2]
[372877570,1752789057049,-151.0,0.0001898,2]
[372877571,1752789057059,-460.0,0.0001898,2]
[372877572,1752789057068,-460.0,0.0001898,2]
[372877573,1752789057078,-460.0,0.0001898,2]
[372877574,1752789057087,-151.0,0.0001898,2]
[372877575,1752789057097,-460.0,0.0001898,2]
[372877576,1752789057106,-460.0,0.0001898,2]
[372877577,1752789057116,-460.0,0.0001898,2]
[372877578,1752789057126,-460.0,0.0001898,2]
[372877579,1752789057136,-478.11,0.0001898,2]
[372877580,1752789057146,-667.28,0.0001898,2]
[372877581,1752789057156,-460.0,0.0001898,2]
[372877582,1752789057166,-460.0,0.0001898,2]
[372877583,1752789057176,-460.0,0.0001898,2]
[372877584,1752789057189,-460.0,0.0001898,2]
[372877585,1752789057199,-460.0,0.0001898,2]
[372877586,1752789057209,-815.05,0.0001898,2]
[372877587,1752789057219,-1653.1,0.0001898,2]
[372877588,1752789057228,-460.0,0.0001898,2]
[372877589,1752789057238,-167.155852,0.0001898,2]
[372877590,1752789057248,-167.155852,0.0001898,2]
[372877591,1752789057258,-474.71919553,0.0001898,2]
[372877592,1752789057267,-462.97,0.0001898,2]
[372877593,1752789057277,-492.36,0.0001898,2]
[372877594,1752789057287,-460.0,0.0001898,2]
[372877595,1752789057296,-460.0,0.0001898,2]
[372877596,1752789057306,-565.51,0.0001898,2]
[372877597,1752789057316,-151.0,0.00018981,2]
[372877598,1752789057325,-1792.91,0.00018981,2]
[372877599,1752789057335,-476.22,0.00018981,2]
[372877600,1752789057345,-460.0,0.00018981,2]
[372877601,1752789057354,-554.7,0.00018981,2]
[372877602,1752789057364,-2238.22,0.00018981,2]
[372877603,1752789057374,-1267.48,0.00018981,2]
[372877604,1752789057386,-573.8,0.00018982,2]
[372877605,1752789057395,-460.0,0.00018982,2]
[372877606,1752789057405,-460.0,0.00018982,2]
[372877607,1752789057415,-473.94804439,0.00018982,2]
[372877608,1752789057425,-460.0,0.00018982,2]
[372877609,1752789057437,-460.0,0.00018982,2]
[372877610,1752789057447,-460.0,0.00018982,2]
[372877611,1752789057458,-460.0,0.00018982,2]
[372877612,1752789057469,-460.0,0.00018982,2]
[372877613,1752789057480,-460.0,0.00018982,2]
[372877614,1752789057490,-460.0,0.00018982,2]
[372877615,1752789057500,-151.0,0.00019,2]
[372877616,1752789057511,-151.0,0.00019,2]
[372877617,1752789057520,-198.99851668,0.0001901,2]
[372877618,1752789057530,-151.0,0.00019116,2]
[372877619,1752789057539,-360.0,0.00019174,2]
[372877620,1752789057549,-666.0,0.00019178,2]
[372877621,1752789057560,-172.021611,0.00019178,2]
[372877622,1752789057570,-832.44717428,0.00019235,2]
[372877623,1752789057579,-1500.0,0.00019246,2]
[372877624,1752789057589,-1500.0,0.0001925,2]
[372877625,1752789057599,-460.0,0.00019252,2]
[372877626,1752789057609,-321.38011707,0.00019252,2]
[372877627,1752789057619,-219.28,0.00019252,2]
[372877628,1752789057629,-460.0,0.00019252,2]
[372877629,1752789057639,-3212.54,0.00019252,2]
[372877630,1752789057648,-1115.15,0.00019252,2]
[372877631,1752789057659,-966.93,0.00019253,2]
[372877632,1752789057669,-1595.08,0.00019253,2]
[372877633,1752789057679,-460.0,0.00019253,2]
[372877634,1752789057689,-460.0,0.00019253,2]
[372877635,1752789057701,-1001.3,0.00019253,2]
[372877636,1752789057716,-460.0,0.00019253,2]
[372877637,1752789057726,-460.0,0.00019253,2]
[372877638,1752789057735,-716.23,0.00019253,2]
[372877639,1752789057745,-779.4,0.00019253,2]
[372877640,1752789057754,-460.0,0.00019253,2]
[372877641,1752789057766,-460.0,0.00019253,2]
[372877642,1752789057776,-460.0,0.00019253,2]
[372877643,1752789057785,-460.0,0.00019254,2]
[372877644,1752789057795,-151.0,0.00019254,2]
[372877645,1752789057804,-279.852506,0.00019254,2]
[372877646,1752789057814,-151.0,0.00019254,2]
[372877647,1752789057823,-151.0,0.00019254,2]
[372877648,1752789057833,-151.0,0.00019254,2]
[372877649,1752789057842,-460.0,0.00019254,2]
[372877650,1752789057851,-460.0,0.00019254,2]
[372877651,1752789057862,-460.0,0.00019254,2]
[372877652,1752789057871,-460.0,0.00019254,2]
[372877653,1752789057880,-460.0,0.00019254,2]
[372877654,1752789057889,-460.0,0.00019254,2]
[372877655,1752789057899,-460.0,0.00019254,2]
[372877656,1752789057909,-478.11,0.00019254,2]
[372877657,1752789057918,-667.28,0.00019254,2]
[372877658,1752789057928,-460.0,0.00019254,2]
[372877659,1752789057938,-460.0,0.00019254,2]
[372877660,1752789057947,-460.0,0.00019254,2]
[372877661,1752789057957,-460.0,0.00019254,2]
[372877662,1752789057966,-460.0,0.00019254,2]
[372877663,1752789057975,-815.05,0.00019254,2]
[372877664,1752789057985,-1653.1,0.00019254,2]
[372877665,1752789057995,-460.0,0.00019254,2]
[372877666,1752789058004,-462.97,0.00019254,2]
[372877667,1752789058014,-492.36,0.00019254,2]
[372877668,1752789058024,-460.0,0.00019254,2]
[372877669,1752789058033,-460.0,0.00019254,2]
[372877670,1752789058043,-565.51,0.00019254,2]
[372877671,1752789058052,-1792.91,0.00019255,2]
[372877672,1752789058062,-476.22,0.00019255,2]
[372877673,1752789058073,-460.0,0.00019255,2]
[372877674,1752789058083,-554.7,0.00019255,2]
[372877675,1752789058092,-2238.22,0.00019255,2]
[372877676,1752789058101,-1267.48,0.00019255,2]
[372877677,1752789058111,-573.8,0.00019256,2]
[372877678,1752789058120,-460.0,0.00019256,2]
[372877679,1752789058130,-460.0,0.00019256,2]
[372877680,1752789058139,-460.0,0.00019256,2]
[372877681,1752789058149,-460.0,0.00019256,2]
[372877682,1752789058158,-460.0,0.00019256,2]
[372877683,1752789058168,-460.0,0.00019256,2]
[372877684,1752789058178,-460.0,0.00019256,2]
[372877685,1752789058187,-460.0,0.00019256,2]
[372877686,1752789058198,-460.0,0.00019256,2]
[372877687,1752789058208,-1424.49392517,0.00019264,2]
[372877688,1752789058217,-500.0,0.00019273,2]
[372877689,1752789058227,-500.11778428,0.00019273,2]
[372877690,1752789058237,-500.0,0.00019273,2]
[372877691,1752789058246,-500.0,0.00019273,2]
[372877692,1752789058256,-500.0,0.00019273,2]
[372877693,1752789058266,-500.0,0.00019273,2]
[372877694,1752789058276,-502.33311944,0.00019273,2]
[372877695,1752789058287,-500.0,0.00019273,2]
[372877696,1752789058297,-374.34019464,0.00019273,2]
[372877697,1752789058307,-158.11686192,0.00019273,2]
[372877698,1752789058316,-170.12682602,0.00019273,2]
[372877699,1752789058326,-150.33956401,0.00019273,2]
[372877700,1752789058336,-158.52082031,0.00019273,2]
[372877701,1752789058346,-500.0,0.00019273,2]
[372877702,1752789058355,-151.0,0.00019273,2]
[372877703,1752789058364,-151.0,0.00019273,2]
[372877704,1752789058374,-151.0,0.00019273,2]
[372877705,1752789058385,-151.0,0.00019273,2]
[372877706,1752789058395,-207.4,0.0001928,2]
[372877707,1752789058405,-151.0,0.0001928,2]
[372877708,1752789058418,-151.0,0.0001928,2]
[372877709,1752789058428,-151.0,0.0001928,2]
[372877710,1752789058442,-500.0,0.0001928,2]
[372877711,1752789058451,-151.0,0.0001928,2]
[372877712,1752789058461,-500.0,0.0001928,2]
[372877713,1752789058471,-151.0,0.0001928,2]
[372877714,1752789058482,-151.0,0.0001928,2]